bitfinex-derivatives/quotes_BTCF0:USTF0_20250722
["timestamp","ask_amount","ask_price","bid_price","bid_amount"]
[1753195506185,0.1733211,118900.0,118890.0,0.4193116]
[1753195506491,0.1731211,118900.0,118890.0,0.7801116]
[1753195506690,0.18159751,118900.0,118890.0,1.3744716]
[1753195506891,0.1731211,118900.0,118890.0,1.3744716]
[1753195507497,0.007,118900.0,118890.0,1.3744716]
[1753195509089,0.006,118900.0,118890.0,1.3744716]
[1753195509286,0.17487987,118910.0,118900.0,0.2505974]
[1753195509494,0.17467987,118910.0,118900.0,0.7763774]
[1753195509989,0.17467987,118910.0,118900.0,1.3705774]
[1753195510692,0.17667987,118910.0,118900.0,1.3705774]
[1753195510885,0.00857277,118910.0,118900.0,1.3705774]
[1753195511092,0.00857277,118910.0,118900.0,1.78850391]
[1753195511388,0.00857277,118910.0,118900.0,1.19430391]
[1753195511594,0.01690799,118920.0,118910.0,0.3909933]
[1753195511796,0.2653289,118930.0,118920.0,0.4155492]
[1753195512092,0.69137552,118930.0,118920.0,1.3704692]
[1753195512291,0.013,118930.0,118920.0,1.3704692]
[1753195512691,0.181075,118930.0,118920.0,1.3704692]
[1753195513090,0.013,118930.0,118920.0,1.3704692]
[1753195513285,0.181075,118930.0,118920.0,1.3704692]
[1753195513491,0.013,118930.0,118920.0,1.3704692]
[1753195513995,0.181075,118930.0,118920.0,1.3704692]
[1753195514493,0.013,118930.0,118920.0,1.3703492]
[1753195514689,0.013,118930.0,118920.0,0.7763492]
[1753195514996,0.181075,118930.0,118920.0,1.3703092]
[1753195515791,0.013,118930.0,118920.0,1.3703092]
[1753195515988,0.013,118930.0,118920.0,1.78823571]
[1753195516293,0.181075,118930.0,118920.0,1.3703092]
[1753195516496,0.181075,118930.0,118920.0,1.43712756]
[1753195516684,0.181075,118930.0,118920.0,1.43708756]
[1753195517688,0.181075,118930.0,118920.0,0.84316756]
[1753195517890,0.181075,118930.0,118920.0,1.43704756]
[1753195518095,0.013,118930.0,118920.0,1.85497407]
[1753195518689,0.013,118930.0,118920.0,0.84316756]
[1753195518994,0.181075,118930.0,118920.0,1.43704756]
[1753195519792,0.013,118930.0,118920.0,1.85497407]
[1753195519994,0.09440972,118940.0,118930.0,0.415535]
[1753195519995,0.17843622,118940.0,118930.0,0.415535]
[1753195520299,0.01017532,118940.0,118930.0,0.776375]
[1753195522099,0.0002,118950.0,118940.0,0.2620809]
[1753195522294,0.1680468,118950.0,118940.0,1.3201709]
[1753195522496,0.1680468,118950.0,118940.0,1.3700409]
[1753195523402,0.83900908,118960.0,118950.0,0.1680468]
[1753195523607,0.86594908,118960.0,118950.0,0.7763468]
[1753195523906,0.34262257,118960.0,118950.0,0.7763468]
[1753195524200,0.27761257,118960.0,118950.0,0.7763468]
[1753195526311,0.26035128,118960.0,118950.0,0.7763468]
[1753195527410,0.17632118,118960.0,118950.0,0.7763468]
[1753195527609,0.00828848,118960.0,118950.0,0.7763468]
[1753195527805,0.3435055,118970.0,118960.0,0.2505126]
[1753195528008,0.3433055,118970.0,118960.0,1.3698926]
[1753195528607,0.4354555,118970.0,118960.0,1.3698926]
[1753195528810,0.4603955,118970.0,118960.0,1.0090926]
[1753195529008,0.87832201,118970.0,118960.0,1.0090926]
[1753195529506,0.88694295,118970.0,118960.0,1.0090926]
[1753195530410,0.24319104,118970.0,118960.0,1.3698926]
[1753195530610,0.18965104,118970.0,118960.0,1.3698926]
[1753195531420,0.54584727,118970.0,118960.0,1.3698926]
[1753195531907,0.013,118970.0,118960.0,1.3698926]
[1753195532109,0.013,118970.0,118960.0,1.72608883]
[1753195532413,0.013,118970.0,118960.0,1.3698926]
[1753195533520,0.013,118970.0,118960.0,1.3697726]
[1753195533709,0.013,118970.0,118960.0,1.72596883]
[1753195534410,0.013,118970.0,118960.0,1.37822979]
[1753195534609,0.01763561,118980.0,118970.0,0.3909084]
[1753195534917,0.0001,118980.0,118970.0,1.13251463]
[1753195536320,0.0001,118980.0,118970.0,0.7763184]
[1753195536519,0.0001,118980.0,118970.0,1.13251463]
[1753195537022,0.1681043,118980.0,118970.0,0.7763184]
[1753195537810,0.52430053,118980.0,118970.0,1.3696384]
[1753195539721,0.35629623,118980.0,118970.0,0.7763184]
[1753195540017,0.52430053,118980.0,118970.0,0.7763184]
[1753195540319,0.66894053,118980.0,118970.0,1.3695984]
[1753195540707,0.01157,118980.0,118970.0,1.3695984]
[1753195540917,0.0001,118980.0,118970.0,1.72579463]
[1753195541119,0.01328,118990.0,118980.0,0.2672343]
[1753195541120,0.1812702,118990.0,118980.0,0.2672343]
[1753195541317,0.1810702,118990.0,118980.0,1.13003053]
[1753195541808,0.1810702,118990.0,118980.0,0.7738343]
[1753195541809,0.01308,118990.0,118980.0,0.7738343]
[1753195542012,0.01308,118990.0,118980.0,1.14843634]
[1753195542316,0.01308,118990.0,118980.0,1.48662475]
[1753195542521,0.1810702,118990.0,118980.0,1.48666475]
[1753195542917,0.3257502,118990.0,118980.0,1.48662475]
[1753195543420,0.1810702,118990.0,118980.0,1.48662475]
[1753195543823,0.01308,118990.0,118980.0,1.48662475]
[1753195544419,0.1810702,118990.0,118980.0,0.85822475]
[1753195544621,0.3257502,118990.0,118980.0,1.48746475]
[1753195544923,0.3257502,118990.0,118980.0,0.85822475]
[1753195544924,0.79338905,118990.0,118980.0,0.85822475]
[1753195545124,0.79338905,118990.0,118980.0,1.48746475]
[1753195546224,1.17114905,118990.0,118980.0,0.13007045]
[1753195546427,1.17114905,118990.0,118980.0,0.04568]
[1753195546428,1.18827901,118990.0,118980.0,0.04568]
[1753195546623,1.43827901,118990.0,118980.0,4e-05]
[1753195546929,1.60636701,118990.0,118980.0,0.04568]
[1753195547529,1.60636701,118990.0,118980.0,4e-05]
[1753195549133,0.26031379,118980.0,118970.0,0.67588]
[1753195549330,1.15820264,118980.0,118970.0,0.67588]
[1753195550232,1.15820264,118980.0,118970.0,0.67632]
[1753195550733,0.3800385,118970.0,118960.0,0.9864744]
[1753195551030,1.15809735,118970.0,118960.0,0.69893]
[1753195551229,0.79729735,118970.0,118960.0,0.04564]
[1753195551425,1.15809735,118970.0,118960.0,0.67632]
[1753195551934,0.79729735,118970.0,118960.0,0.67632]
[1753195552135,0.79729735,118970.0,118960.0,0.69893]
[1753195552330,1.15809735,118970.0,118960.0,0.72089]
[1753195552530,1.15809735,118970.0,118960.0,0.87567]
[1753195552731,1.15809735,118970.0,118960.0,1.0437026]
[1753195553030,1.15809735,118970.0,118960.0,0.87567]
[1753195553235,1.15809735,118970.0,118960.0,0.73963271]
[1753195553436,1.15809735,118970.0,118960.0,0.70640271]
[1753195554037,1.15809735,118970.0,118960.0,0.78391271]
[1753195554235,0.7408385,118970.0,118960.0,0.15323271]
[1753195554425,1.15809735,118970.0,118960.0,0.78859271]
[1753195554628,1.15809735,118970.0,118960.0,0.18084271]
[1753195554834,1.17531517,118970.0,118960.0,0.08072271]
[1753195555129,0.3800526,118960.0,118950.0,0.05200215]
[1753195555336,1.5753703,118960.0,118950.0,0.05200215]
[1753195555537,1.9934983,118960.0,118950.0,0.05200215]
[1753195555738,1.9934983,118960.0,118950.0,0.02228972]
[1753195557038,1.9934983,118960.0,118950.0,0.002]
[1753195557240,0.3568267,118950.0,118940.0,0.09076851]
[1753195557540,1.5753844,118950.0,118940.0,0.09076851]
[1753195557936,0.3800808,118940.0,118930.0,0.04564]
[1753195558234,0.380095,118930.0,118920.0,0.04564]
[1753195558438,1.15815385,118930.0,118920.0,0.04564]
[1753195558639,1.17548791,118930.0,118920.0,0.04564]
[1753195559046,1.18405031,118930.0,118920.0,0.04564]
[1753195560542,1.18405031,118930.0,118920.0,0.04864]
[1753195560744,1.18405031,118930.0,118920.0,0.14149]
[1753195561233,1.18405031,118930.0,118920.0,0.3428092]
[1753195561439,0.02589646,118930.0,118920.0,0.7808792]
[1753195561641,0.19397156,118930.0,118920.0,0.7808792]
[1753195561842,0.02589646,118930.0,118920.0,0.7808792]
[1753195562340,0.01733406,118930.0,118920.0,0.7808792]
[1753195562541,0.18540916,118930.0,118920.0,0.7808792]
[1753195562748,0.18540916,118930.0,118920.0,0.4200792]
[1753195562949,0.66771801,118930.0,118920.0,0.4200792]
[1753195563247,0.74734801,118930.0,118920.0,0.25199]
[1753195563438,0.82319026,118930.0,118920.0,0.25199]
[1753195563640,1.18399026,118930.0,118920.0,0.72773]
[1753195563844,1.18399026,118930.0,118920.0,0.09721]
[1753195564144,1.18399026,118930.0,118920.0,0.05264]
[1753195564941,1.18399026,118930.0,118920.0,0.007]
[1753195565142,1.35216626,118930.0,118920.0,0.007]
[1753195565338,0.1681036,118910.0,118900.0,0.73032]
[1753195565649,1.15818245,118910.0,118900.0,0.04564]
[1753195565847,0.79738245,118910.0,118900.0,0.67568]
[1753195566047,1.15818245,118910.0,118900.0,0.04564]
[1753195566342,0.3568973,118900.0,118890.0,0.77555423]
[1753195566542,1.15819615,118900.0,118890.0,0.14583423]
[1753195566849,1.15819615,118900.0,118890.0,0.77555423]
[1753195567148,1.15819615,118900.0,118890.0,0.17906423]
[1753195567346,1.15819615,118900.0,118890.0,0.04571423]
[1753195567539,1.15819615,118900.0,118890.0,0.05071423]
[1753195567746,1.575455,118900.0,118890.0,0.00507423]
[1753195568138,1.743671,118900.0,118890.0,0.00507423]
[1753195568547,1.743671,118900.0,118890.0,0.05319423]
[1753195568952,1.743671,118900.0,118890.0,0.00707423]
[1753195569652,1.744671,118900.0,118890.0,7.423e-05]
[1753195569852,1.81118665,118900.0,118890.0,7.423e-05]
[1753195571351,2.43990665,118900.0,118890.0,0.04819423]
[1753195571651,2.43990665,118900.0,118880.0,0.02492]
[1753195571652,0.3797515,118890.0,118880.0,0.04822]
[1753195571852,1.15781035,118890.0,118880.0,0.04822]
[1753195572951,1.15781035,118890.0,118880.0,0.05022]
[1753195573249,1.15781035,118890.0,118880.0,0.05222]
[1753195573651,1.15781035,118890.0,118880.0,0.0041]
[1753195574948,1.15781035,118890.0,118880.0,0.2203656]
[1753195575146,1.14085035,118890.0,118880.0,0.4179856]
[1753195575349,1.00439405,118900.0,118890.0,0.4138714]
[1753195575551,0.7953329,118900.0,118890.0,0.4138714]
[1753195575746,1.23973175,118900.0,118890.0,0.24574]
[1753195576051,1.64157175,118900.0,118890.0,0.11676]
[1753195576253,1.28077175,118900.0,118890.0,0.11676]
[1753195576453,1.64157175,118900.0,118890.0,0.05979]
[1753195576755,1.28077175,118900.0,118890.0,0.06079]
[1753195576956,1.64157175,118900.0,118890.0,0.06079]
[1753195577348,1.28077175,118900.0,118890.0,0.06079]
[1753195577549,1.64157175,118900.0,118890.0,0.08561]
[1753195577743,1.26381175,118900.0,118890.0,0.24674]
[1753195577948,2.24977175,118900.0,118890.0,0.24674]
[1753195578351,1.8325129,118900.0,118890.0,0.24674]
[1753195578545,0.40521405,118900.0,118890.0,0.24674]
[1753195578750,0.8224729,118900.0,118890.0,0.29125231]
[1753195578947,0.8224729,118900.0,118890.0,0.45938371]
[1753195579153,0.8224729,118900.0,118890.0,0.29125231]
[1753195579756,0.64985725,118900.0,118890.0,0.82018371]
[1753195580050,0.64985725,118900.0,118890.0,0.7756714]
[1753195580256,0.58537615,118900.0,118890.0,0.7756714]
[1753195583261,0.72849273,118910.0,118900.0,0.4138573]
[1753195583465,0.72829273,118910.0,118900.0,1.44214571]
[1753195583859,0.01683248,118910.0,118900.0,1.3975773]
[1753195584058,0.18493568,118910.0,118900.0,0.7746573]
[1753195584258,0.18493568,118910.0,118900.0,1.3973773]
[1753195584666,0.60219453,118910.0,118900.0,0.7746573]
[1753195585066,0.61442453,118910.0,118900.0,0.7746573]
[1753195585257,0.74563453,118910.0,118900.0,0.7746574]
[1753195585458,0.74563453,118910.0,118900.0,1.3968974]
[1753195585858,0.74663453,118910.0,118900.0,1.3968974]
[1753195586266,0.77377453,118910.0,118900.0,1.3968974]
[1753195586766,0.74663453,118910.0,118900.0,1.3968974]
[1753195587462,0.32937578,118910.0,118900.0,1.3968974]
[1753195587667,0.74663463,118910.0,118900.0,1.3968974]
[1753195587967,0.77377463,118910.0,118900.0,1.3968974]
[1753195588266,0.77377463,118910.0,118900.0,0.7746574]
[1753195588566,0.79785463,118910.0,118900.0,1.3958974]
[1753195589665,0.79785463,118910.0,118900.0,0.7746574]
[1753195589871,0.79785463,118910.0,118900.0,1.22766]
[1753195590062,0.81481463,118910.0,118900.0,0.86622]
[1753195590262,0.81481463,118910.0,118900.0,0.8661]
[1753195590568,1.59287348,118910.0,118900.0,0.04812]
[1753195590771,1.17561463,118910.0,118900.0,0.04812]
[1753195591671,0.3007774,118900.0,118890.0,0.66848]
[1753195591970,1.5750551,118900.0,118890.0,0.04812]
[1753195592770,0.2597516,118890.0,118880.0,0.77018]
[1753195593064,0.79701045,118890.0,118880.0,0.16209]
[1753195593267,1.15781045,118890.0,118880.0,0.04822]
[1753195593572,1.15781045,118890.0,118880.0,0.0001]
[1753195594561,1.15781045,118890.0,118860.0,0.7214]
[1753195594562,0.3797799,118870.0,118860.0,0.16199]
[1753195594763,1.15783875,118870.0,118860.0,0.16199]
[1753195594961,1.77659875,118870.0,118860.0,0.05979]
[1753195595269,1.77659875,118870.0,118860.0,0.04812]
[1753195595469,1.14087875,118870.0,118860.0,0.19414]
[1753195595670,1.39851875,118870.0,118860.0,0.413914]
[1753195595865,0.78007875,118870.0,118860.0,0.417914]
[1753195596370,0.78848835,118870.0,118860.0,0.417914]
[1753195596867,0.78848835,118870.0,118860.0,0.421914]
[1753195598369,0.3712295,118870.0,118860.0,0.421914]
[1753195598574,0.76440835,118870.0,118860.0,0.421914]
[1753195598777,0.49014845,118870.0,118860.0,0.421914]
[1753195598967,0.55306885,118880.0,118870.0,0.3393299]
[1753195599276,0.58540455,118880.0,118870.0,1.3889399]
[1753195600574,0.58540455,118880.0,118870.0,1.3919399]
[1753195601376,0.58540455,118880.0,118870.0,1.3949399]
[1753195601678,0.67166455,118880.0,118870.0,1.3949399]
[1753195601871,0.72101455,118880.0,118870.0,1.0341399]
[1753195602067,1.10895455,118880.0,118870.0,0.86598]
[1753195602272,0.77079455,118880.0,118870.0,0.86598]
[1753195602670,0.79615581,118880.0,118870.0,0.86598]
[1753195603070,1.15695581,118880.0,118870.0,0.86598]
[1753195603275,0.79615581,118880.0,118870.0,1.0341399]
[1753195603670,1.15695581,118880.0,118870.0,0.24882]
[1753195603873,1.15695581,118880.0,118870.0,0.67002]
[1753195604076,1.15695581,118880.0,118870.0,0.62148]
[1753195604569,1.15695581,118880.0,118870.0,0.05454]
[1753195604977,1.15695581,118880.0,118870.0,0.006]
[1753195605577,1.32519581,118880.0,118870.0,0.006]
[1753195605878,0.190814,118860.0,118850.0,0.78090561]
[1753195606076,0.190814,118860.0,118850.0,0.09017561]
[1753195606077,1.14858285,118860.0,118850.0,0.09017561]
[1753195606272,1.14858285,118860.0,118850.0,0.04854]
[1753195606874,1.5658417,118860.0,118850.0,0.04854]
[1753195607075,0.3705382,118850.0,118840.0,0.69275742]
[1753195607379,1.2050559,118850.0,118840.0,0.66302]
[1753195607672,0.78779705,118850.0,118840.0,0.66302]
[1753195608179,0.78779705,118850.0,118840.0,0.8543323]
[1753195608379,0.78779705,118850.0,118840.0,0.69763]
[1753195608681,1.5658559,118850.0,118840.0,0.66302]
[1753195608977,1.5658559,118850.0,118840.0,0.05454]
[1753195609778,2.1797759,118850.0,118840.0,0.006]
[1753195610568,2.1797759,118850.0,118840.0,0.05454]
[1753195610980,2.1797759,118850.0,118840.0,0.04854]
[1753195611278,2.1797759,118850.0,118840.0,0.05354]
[1753195613979,2.1797759,118850.0,118840.0,0.005]
[1753195615080,0.78553115,118840.0,118830.0,0.04854]
[1753195615276,1.14633115,118840.0,118830.0,0.04854]
[1753195616277,1.14633115,118840.0,118830.0,0.2478665]
[1753195616478,0.74821115,118840.0,118830.0,0.7798365]
[1753195616688,0.74821115,118840.0,118830.0,0.4190365]
[1753195617079,0.74821115,118840.0,118830.0,0.7798365]
[1753195617280,0.74821115,118840.0,118830.0,0.4190365]
[1753195617580,0.74821115,118840.0,118830.0,0.25082]
[1753195617885,0.78508115,118840.0,118830.0,0.25082]
[1753195618085,1.14588115,118840.0,118830.0,0.05654]
[1753195618482,0.97767885,118840.0,118820.0,0.04854]
[1753195618682,0.3678506,118820.0,118810.0,0.04854]
[1753195618887,0.3678648,118810.0,118800.0,0.06719906]
[1753195619084,3.25712365,118810.0,118800.0,0.04854]
[1753195619486,0.3678789,118800.0,118790.0,0.68298786]
[1753195619682,1.57158356,118800.0,118790.0,0.68298786]
[1753195619986,1.57158356,118800.0,118790.0,0.04867786]
[1753195620380,1.57158356,118800.0,118790.0,0.00013786]
[1753195620581,1.57158356,118800.0,118790.0,0.04867786]
[1753195620788,1.40436471,118800.0,118790.0,0.35795096]
[1753195620986,1.38740471,118800.0,118790.0,0.24295786]
[1753195621384,1.74820471,118800.0,118790.0,0.24295786]
[1753195621685,1.76516471,118800.0,118790.0,0.04867786]
[1753195621884,2.18242356,118800.0,118790.0,0.00013786]
[1753195622086,0.3678931,118790.0,118780.0,0.04854]
[1753195622286,1.14595195,118790.0,118780.0,0.04854]
[1753195622482,1.16306603,118790.0,118780.0,0.04854]
[1753195624190,1.77358603,118790.0,118780.0,0.04854]
[1753195624889,0.16275,118770.0,118760.0,1.3227413]
[1753195625083,0.74831025,118770.0,118760.0,1.3712813]
[1753195625893,0.74831025,118770.0,118760.0,1.11882]
[1753195626097,1.14598025,118770.0,118760.0,0.04854]
[1753195626391,1.14598025,118770.0,118760.0,0.19354]
[1753195626697,1.14598025,118770.0,118760.0,0.19654]
[1753195627197,1.14598025,118770.0,118760.0,0.05554]
[1753195627695,1.75494025,118770.0,118760.0,0.05554]
[1753195627995,0.3679356,118760.0,118750.0,0.04854]
[1753195628199,1.14599445,118760.0,118750.0,0.04854]
[1753195629095,0.3715597,118750.0,118740.0,0.1442]
[1753195629302,2.1756774,118750.0,118740.0,0.1442]
[1753195629698,1.8148774,118750.0,118740.0,0.15538]
[1753195630000,2.19303881,118750.0,118740.0,0.0452]
[1753195630200,1.8519539,118740.0,118730.0,0.06801]
[1753195630408,2.64963275,118740.0,118730.0,0.06801]
[1753195630702,3.25831275,118740.0,118730.0,0.0453]
[1753195631009,0.2945081,118730.0,118720.0,0.0452]
[1753195631203,0.2579423,118720.0,118710.0,0.14641]
[1753195631504,1.75818115,118720.0,118710.0,0.0452]
[1753195631706,1.76661287,118720.0,118710.0,0.0452]
[1753195631906,1.76661287,118720.0,118700.0,0.0452]
[1753195631907,0.3410364,118710.0,118700.0,0.0452]
[1753195632206,1.14967525,118710.0,118700.0,0.0452]
[1753195632406,1.14967525,118710.0,118700.0,0.07909]
[1753195632705,1.74087525,118710.0,118700.0,0.24252]
[1753195632901,0.75229525,118710.0,118700.0,0.7717206]
[1753195633102,0.64807525,118710.0,118700.0,0.7717206]
[1753195633301,0.72515525,118710.0,118700.0,0.60332]
[1753195633501,0.78987525,118710.0,118700.0,0.06791]
[1753195633703,0.78987525,118710.0,118700.0,0.15759]
[1753195634100,0.77291525,118710.0,118700.0,0.4109207]
[1753195634300,0.77291525,118710.0,118700.0,0.24252]
[1753195634610,0.78987525,118710.0,118700.0,0.0452]
[1753195634905,1.15067525,118710.0,118700.0,0.0452]
[1753195635297,0.3350507,118700.0,118690.0,0.18878]
[1753195635498,0.49785819,118690.0,118680.0,0.18878]
[1753195635704,0.49785819,118690.0,118680.0,0.3572091]
[1753195635705,0.87301044,118690.0,118680.0,0.3572091]
[1753195635899,0.39402579,118690.0,118680.0,0.410949]
[1753195636099,0.81128464,118690.0,118680.0,0.410949]
[1753195636507,0.81128464,118690.0,118680.0,1.380069]
[1753195636508,0.01685669,118690.0,118680.0,1.380069]
[1753195636707,0.18527149,118690.0,118680.0,1.380069]
[1753195636902,0.60253034,118690.0,118680.0,1.380069]
[1753195637103,0.77118034,118690.0,118680.0,0.24252]
[1753195637303,0.80776034,118690.0,118680.0,0.24252]
[1753195637607,0.75130149,118690.0,118680.0,0.0452]
[1753195637808,1.77696034,118690.0,118680.0,0.0452]
[1753195638002,1.16856034,118690.0,118680.0,0.0452]
[1753195638203,0.2579989,118680.0,118670.0,0.06791]
[1753195638401,1.14971775,118680.0,118670.0,0.06791]
[1753195638607,1.14971775,118680.0,118670.0,0.0452]
[1753195638806,0.78891775,118680.0,118670.0,0.2136431]
[1753195639008,1.36045775,118680.0,118670.0,0.4109631]
[1753195639205,0.01096,118680.0,118670.0,0.7717631]
[1753195639405,0.01905669,118690.0,118680.0,0.4109489]
[1753195639609,0.01685669,118690.0,118680.0,0.7717489]
[1753195639808,0.43411554,118690.0,118680.0,1.3796289]
[1753195640004,0.01685669,118690.0,118680.0,1.3796289]
[1753195640700,0.01685669,118690.0,118680.0,1.7020309]
[1753195640899,0.168605,118700.0,118690.0,0.1684147]
[1753195641106,0.168405,118700.0,118690.0,0.6756247]
[1753195642212,0.169405,118700.0,118690.0,0.6756247]
[1753195642410,0.171405,118700.0,118690.0,0.6756247]
[1753195643410,0.003,118700.0,118690.0,0.6756247]
[1753195643711,0.0002,118710.0,118700.0,0.3148107]
[1753195643903,0.26120482,118720.0,118710.0,0.2920865]
[1753195644100,0.1683806,118720.0,118710.0,0.6755965]
[1753195644503,0.58563945,118720.0,118710.0,0.6755965]
[1753195644700,0.58563945,118720.0,118710.0,1.2825565]
[1753195645411,0.59063945,118720.0,118710.0,1.2825565]
[1753195645908,0.004,118720.0,118710.0,1.2825565]
[1753195646206,0.003,118720.0,118710.0,1.4610285]
[1753195646808,0.003,118720.0,118710.0,1.87828735]
[1753195647218,0.0002,118730.0,118720.0,0.4108924]
[1753195647514,0.2527314,118740.0,118730.0,0.2786382]
[1753195647712,0.210442,118740.0,118730.0,1.3786782]
[1753195648218,0.22798171,118750.0,118740.0,0.4108638]
[1753195648413,0.22778171,118750.0,118740.0,1.3783838]
[1753195649216,0.22778171,118750.0,118740.0,1.3883838]
[1753195649523,0.18769131,118750.0,118740.0,1.2922738]
[1753195650418,0.18669131,118750.0,118740.0,1.2922738]
[1753195650715,0.18669111,118750.0,118740.0,1.70953265]
[1753195650915,0.18669111,118750.0,118740.0,1.2922738]
[1753195651713,0.68102996,118750.0,118740.0,0.51721]
[1753195651915,0.70378996,118750.0,118740.0,1.2911938]
[1753195652314,0.70378996,118750.0,118740.0,0.15641]
[1753195652509,0.70378996,118750.0,118740.0,0.76189]
[1753195652816,0.70378996,118750.0,118740.0,0.14641]
[1753195653018,0.72074996,118750.0,118740.0,0.75189]
[1753195653523,0.70378996,118750.0,118740.0,0.75189]
[1753195653919,0.72074996,118750.0,118740.0,0.75189]
[1753195654415,0.72174996,118750.0,118740.0,0.75189]
[1753195654623,0.81131996,118750.0,118740.0,0.76307]
[1753195655019,0.81231996,118750.0,118740.0,0.76307]
[1753195655214,0.79535996,118750.0,118740.0,0.79426]
[1753195655723,0.79535996,118750.0,118740.0,0.848]
[1753195657218,0.37810111,118750.0,118740.0,1.0163438]
[1753195657526,0.18769111,118750.0,118740.0,1.0163438]
[1753195658024,0.60494996,118750.0,118740.0,1.0163438]
[1753195658326,0.60494996,118750.0,118740.0,1.3771438]
[1753195658731,0.18769111,118750.0,118740.0,1.3771438]
[1753195659423,0.01936141,118750.0,118740.0,1.79440265]
[1753195659627,0.002,118750.0,118740.0,1.83440265]
[1753195659829,0.0002,118760.0,118750.0,0.4056297]
[1753195660133,0.2526629,118770.0,118760.0,0.4056155]
[1753195660423,0.2524629,118770.0,118760.0,1.3702155]
[1753195661519,0.57817615,118780.0,118760.0,1.2019]
[1753195661722,0.1684871,118780.0,118770.0,0.7664013]
[1753195661925,0.28134918,118790.0,118780.0,0.4055871]
[1753195662125,0.19700988,118790.0,118780.0,1.3697871]
[1753195662319,0.61426873,118790.0,118780.0,1.3697871]
[1753195662520,0.19700988,118790.0,118780.0,1.3697871]
[1753195662721,0.61426873,118790.0,118780.0,1.3697871]
[1753195663516,0.18539988,118790.0,118780.0,1.3697871]
[1753195664429,0.2105328,118800.0,118790.0,0.248603]
[1753195664625,0.1682588,118800.0,118790.0,0.9346373]
[1753195665425,0.1682588,118800.0,118790.0,0.8505041]
[1753195665625,0.1682588,118800.0,118790.0,1.370213]
[1753195665626,0.72573765,118800.0,118790.0,1.370213]
[1753195665926,0.74918765,118800.0,118790.0,1.370213]
[1753195666525,0.64916765,118800.0,118790.0,1.370213]
[1753195666722,0.73191748,118810.0,118800.0,0.4055588]
[1753195666919,0.73171748,118810.0,118800.0,0.7663588]
[1753195667120,0.73171748,118810.0,118800.0,0.4055588]
[1753195667327,0.73171748,118810.0,118800.0,0.7663588]
[1753195667725,0.2523828,118810.0,118800.0,0.7663588]
[1753195669033,0.2543828,118810.0,118800.0,0.7663588]
[1753195669421,0.1702565,118810.0,118800.0,0.7663588]
[1753195669723,0.1702447,118810.0,118800.0,0.7663588]
[1753195670326,0.1712447,118810.0,118800.0,0.7663588]
[1753195670520,0.003,118810.0,118800.0,0.7663588]
[1753195671125,0.003,118810.0,118800.0,1.18361765]
[1753195671726,0.003,118810.0,118800.0,0.7663588]
[1753195672233,0.1702447,118810.0,118800.0,0.7663588]
[1753195672426,0.1682447,118810.0,118800.0,0.7663588]
[1753195672620,0.58550355,118810.0,118800.0,1.3688388]
[1753195673126,0.59711355,118810.0,118800.0,0.7663588]
[1753195673332,0.1798547,118810.0,118800.0,1.3685988]
[1753195673634,0.2564247,118810.0,118800.0,1.3685988]
[1753195673930,0.67368355,118810.0,118800.0,1.3685988]
[1753195674118,0.72572355,118810.0,118800.0,1.3685988]
[1753195674428,0.74917355,118810.0,118800.0,1.3685988]
[1753195674725,0.2318947,118810.0,118800.0,1.3685988]
[1753195674935,0.81721408,118820.0,118810.0,0.3824047]
[1753195675129,0.61426508,118820.0,118810.0,0.7663447]
[1753195675629,0.61426508,118820.0,118810.0,1.3680247]
[1753195676029,0.19700623,118820.0,118810.0,1.3680247]
[1753195676228,0.61626508,118820.0,118810.0,1.3680247]
[1753195676734,0.69283508,118820.0,118810.0,1.3680247]
[1753195677035,0.79546508,118820.0,118810.0,1.0072246]
[1753195677230,1.17322508,118820.0,118810.0,0.81584]
[1753195677528,0.81342508,118820.0,118810.0,0.9344946]
[1753195677731,0.79646508,118820.0,118810.0,1.0072246]
[1753195677925,0.02015393,118820.0,118810.0,1.0072246]
[1753195678327,0.02015393,118820.0,118810.0,1.3680246]
[1753195678533,0.02015393,118820.0,118810.0,1.78528345]
[1753195678727,0.07687,118830.0,118810.0,1.78528345]
[1753195678728,0.0003,118830.0,118820.0,0.2445505]
[1753195678934,0.0001,118830.0,118820.0,1.18358935]
[1753195679123,0.0001,118830.0,118820.0,0.7663305]
[1753195680332,0.75761247,118830.0,118820.0,0.2373]
[1753195680531,1.07172247,118830.0,118820.0,0.04589]
[1753195681034,1.07172247,118830.0,118820.0,0.64781]
[1753195681627,1.07172247,118830.0,118820.0,0.04589]
[1753195682034,1.07372247,118830.0,118820.0,0.04589]
[1753195682229,1.07572247,118830.0,118820.0,0.64753]
[1753195683336,1.07572247,118830.0,118820.0,0.8157605]
[1753195683530,0.69796247,118830.0,118820.0,0.9152205]
[1753195684431,0.67451247,118830.0,118820.0,1.2760205]
[1753195684628,0.18068362,118830.0,118820.0,1.2760205]
[1753195684827,0.0041,118830.0,118820.0,1.2760205]
[1753195685534,0.0041,118830.0,118820.0,1.69327935]
[1753195686127,0.0021,118830.0,118820.0,1.69327935]
[1753195686329,0.0031,118830.0,118820.0,1.69327935]
[1753195686730,0.0031,118830.0,118820.0,1.2760205]
[1753195686936,0.0021,118830.0,118820.0,1.2760205]
[1753195687735,0.0011,118830.0,118820.0,1.2760205]
[1753195688135,0.0011,118830.0,118820.0,1.69327935]
[1753195688435,0.0001,118830.0,118820.0,1.69327935]
[1753195689130,0.1683163,118830.0,118820.0,1.2759405]
[1753195689937,0.1683163,118830.0,118820.0,0.6743805]
[1753195689938,0.68043515,118830.0,118820.0,0.6743805]
[1753195690135,0.68043515,118830.0,118820.0,1.2759005]
[1753195690335,0.58557515,118830.0,118820.0,1.2759005]
[1753195690535,0.65752515,118830.0,118820.0,1.2759005]
[1753195690840,0.65752515,118830.0,118820.0,0.9151005]
[1753195691040,0.68043515,118830.0,118820.0,0.3135805]
[1753195691335,1.05819515,118830.0,118820.0,0.04589]
[1753195691540,1.05819515,118830.0,118820.0,0.64741]
[1753195692537,0.69839515,118830.0,118820.0,0.64741]
[1753195693140,1.05919515,118830.0,118820.0,0.64741]
[1753195693637,0.69839515,118830.0,118820.0,0.64741]
[1753195693844,1.05919515,118830.0,118820.0,0.64741]
[1753195694237,1.06019515,118830.0,118820.0,0.64741]
[1753195695140,0.3518363,118830.0,118820.0,1.3384305]
[1753195695443,0.60087885,118830.0,118820.0,1.3597505]
[1753195695640,0.74618515,118830.0,118820.0,1.3597505]
[1753195695844,0.74618515,118830.0,118820.0,0.9989505]
[1753195696150,0.59822515,118830.0,118820.0,0.9989505]
[1753195696445,1.14685515,118830.0,118820.0,0.16084]
[1753195696640,0.78605515,118830.0,118820.0,0.8265205]
[1753195696839,0.78605515,118830.0,118820.0,0.65829]
[1753195697040,1.14685515,118830.0,118820.0,0.65829]